fUST/lending_fUST_20240824
["ID","MTS","AMOUNT","RATE_DAILY","PERIOD"]
[335794955,1724494249806,-500.0,0.00013698,2]
[335794957,1724494249817,-500.0,0.00013698,2]
[335794959,1724494249827,-500.0,0.00013698,2]
[335794962,1724494249838,-500.0,0.00013698,2]
[335794964,1724494249848,-546.66878442,0.00013698,2]
[335794966,1724494249858,-2945.52,0.00013698,2]
[335794968,1724494249870,-500.0,0.00013698,2]
[335794970,1724494249880,-500.0,0.00013698,2]
[335794972,1724494249889,-1457.66,0.00013698,2]
[335794974,1724494249899,-500.0,0.00013698,2]
[335794976,1724494249910,-500.0,0.00013698,2]
[335794978,1724494249919,-1273.41,0.00013698,2]
[335794980,1724494249929,-500.0,0.00013698,2]
[335794982,1724494249939,-743.91,0.00013698,2]
[335794985,1724494249949,-690.84,0.00013698,2]
[335794987,1724494249958,-580.92,0.00013698,2]
[335794989,1724494249968,-501.19065018,0.00013698,2]
[335794991,1724494249978,-500.09,0.00013698,2]
[335794993,1724494249988,-1032.86,0.00013698,2]
[335794995,1724494249998,-500.0,0.00013698,2]
[335794997,1724494250008,-12506.1,0.00013698,2]
[335794999,1724494250018,-500.0,0.00013698,2]
[335795001,1724494250028,-554.94,0.00013698,2]
[335795003,1724494250038,-500.0,0.00013698,2]
[335795005,1724494250048,-622.11,0.00013698,2]
[335795007,1724494250058,-1964.25,0.00013698,2]
[335795009,1724494250068,-500.0,0.00013698,2]
[335795011,1724494250078,-500.0,0.00013698,2]
[335795013,1724494250088,-1524.4,0.00013698,2]
[335795015,1724494250097,-500.0,0.00013698,2]
[335795018,1724494250107,-500.0,0.00013698,2]
[335795020,1724494250118,-501.58971639,0.00013698,2]
[335795022,1724494250127,-563.64,0.00013698,2]
[335795024,1724494250137,-299.67801397,0.00013698,2]
[335795026,1724494250147,-524.03413021,0.00013698,2]
[335795028,1724494250158,-750.74,0.00013698,2]
[335795030,1724494250168,-1499.0,0.00013698,2]
[335795032,1724494250178,-500.0,0.00013698,2]
[335795034,1724494250189,-500.0,0.00013698,2]
[335795037,1724494250200,-500.0,0.00013698,2]
[335795039,1724494250210,-500.0,0.00013698,2]
[335795041,1724494250220,-636.55,0.00013698,2]
[335795043,1724494250229,-3290.44,0.00013698,2]
[335795045,1724494250239,-500.0,0.00013698,2]
[335795047,1724494250249,-1063.85,0.00013698,2]
[335795049,1724494250259,-500.0,0.00013698,2]
[335795051,1724494250268,-500.0,0.00013698,2]
[335795053,1724494250278,-1713.94,0.00013698,2]
[335795055,1724494250288,-1382.83,0.00013698,2]
[335795057,1724494250298,-4869.48,0.00013698,2]
[335795059,1724494250307,-1210.89,0.00013698,2]
[335795061,1724494250317,-500.0,0.00013698,2]
[335795063,1724494250326,-500.0,0.00013698,2]
[335795065,1724494250336,-388.01515087,0.00013698,2]
[335795067,1724494250346,-500.0,0.00013698,2]
[335795069,1724494250356,-3509.98,0.00013698,2]
[335795071,1724494250372,-528.3863952,0.00013698,2]
[335795073,1724494250384,-1731.69,0.00013698,2]
[335795075,1724494250394,-500.0,0.00013698,2]
[335795077,1724494250404,-1244.75,0.00013698,2]
[335795080,1724494250416,-311.69,0.00013698,2]
[335795082,1724494250425,-500.0,0.00013698,2]
[335795084,1724494250437,-681.98,0.00013698,2]
[335795086,1724494250447,-500.0,0.00013698,2]
[335795088,1724494250458,-1926.72,0.00013698,2]
[335795091,1724494250468,-12829.19,0.00013698,2]
[335795093,1724494250478,-500.0,0.00013698,2]
[335795095,1724494250488,-500.0,0.00013698,2]
[335795097,1724494250498,-2036.61,0.00013698,2]
[335795099,1724494250507,-500.0,0.00013698,2]
[335795101,1724494250517,-6942.64,0.00013698,2]
[335795103,1724494250526,-500.0,0.00013698,2]
[335795105,1724494250536,-500.0,0.00013698,2]
[335795107,1724494250547,-500.0,0.00013698,2]
[335795109,1724494250557,-500.0,0.00013698,2]
[335795111,1724494250567,-500.0,0.00013698,2]
[335795113,1724494250577,-11657.79,0.00013698,2]
[335795116,1724494250587,-500.0,0.00013698,2]
[335795118,1724494250599,-11657.79,0.00013698,2]
[335795120,1724494250610,-500.0,0.00013698,2]
[335795122,1724494250625,-11657.79,0.00013698,2]
[335795124,1724494250636,-500.0,0.00013698,2]
[335795125,1724494250648,-1000.0,0.00013698,2]
[335795126,1724494250659,-11657.79,0.00013698,2]
[335795127,1724494250670,-500.0,0.00013698,2]
[335795128,1724494250680,-11657.79,0.00013698,2]
[335795129,1724494250691,-500.0,0.00013698,2]
[335795135,1724494250772,-11657.79,0.00013698,2]
[335795137,1724494250782,-500.0,0.00013698,2]
[335795139,1724494250791,-11657.79,0.00013698,2]
[335795141,1724494250801,-500.0,0.00013698,2]
[335795143,1724494250811,-500.0,0.00013698,2]
[335795145,1724494250821,-11657.79,0.00013698,2]
[335795147,1724494250831,-500.0,0.00013698,2]
[335795149,1724494250841,-11657.79,0.00013698,2]
[335795152,1724494250852,-500.0,0.00013698,2]
[335795154,1724494250863,-11657.79,0.00013698,2]
[335795156,1724494250872,-151.7,0.00013698,2]
[335795158,1724494250886,-11657.79,0.00013698,2]
[335795160,1724494250895,-11657.79,0.00013698,2]
[335795162,1724494250905,-11657.79,0.00013698,2]
[335795164,1724494250915,-11657.79,0.00013698,2]
[335795166,1724494250924,-11657.79,0.00013698,2]
[335795168,1724494250934,-500.0,0.00013698,2]
[335795170,1724494250945,-944.34,0.00013698,2]
[335795172,1724494250954,-8370.23728059,0.00013698,2]
[335795180,1724494251020,-696.56334124,0.00013698,2]
[335795182,1724494251032,-2590.98937817,0.00013698,2]
[335795184,1724494251041,-11657.79,0.00013698,2]
[335795186,1724494251051,-11657.79,0.00013698,2]
[335795188,1724494251061,-11657.79,0.00013698,2]
[335795190,1724494251070,-11657.79,0.00013698,2]
[335795192,1724494251079,-704.25,0.00013698,2]
[335795194,1724494251088,-11657.79,0.00013698,2]
[335795196,1724494251098,-704.25,0.00013698,2]
[335795198,1724494251107,-500.0,0.00013698,2]
[335795201,1724494251118,-500.0,0.00013698,2]
[335795203,1724494251128,-11657.79,0.00013698,2]
[335795205,1724494251138,-704.25,0.00013698,2]
[335795207,1724494251149,-500.0,0.00013698,2]
[335795209,1724494251159,-11657.79,0.00013698,2]
[335795211,1724494251168,-704.25,0.00013698,2]
[335795213,1724494251179,-485.81075544,0.00013698,2]
[335795345,1724494252473,-1995.30025156,0.00013698,2]
[335795542,1724494254455,457.0,0.00010959,2]
[335798160,1724494297321,223.34327933,9.809e-05,2]
[335798161,1724494304848,500.0,9.761e-05,2]
[335798176,1724494983546,188.43039442,0.00011831,2]
[335798178,1724495057906,1672.36760276,0.00011831,2]
[335798179,1724495122671,201.51075773,0.00011831,2]
[335798180,1724495189551,497.57,0.00010959,2]
[335798181,1724495200131,414.64,0.00010959,2]
[335798182,1724495210658,345.54,0.00010959,2]
[335798184,1724495221151,287.95,0.00010959,2]
[335798185,1724495226171,-5552.46885295,0.00012163,2]
[335798186,1724495226195,-852.8410323,0.00012386,2]
[335798187,1724495226219,-172.098282,0.00012406,2]
[335798188,1724495226244,-172.098282,0.00012622,2]
[335798189,1724495226267,-2596.97571274,0.00012782,2]
[335798190,1724495226291,-172.098282,0.00012837,2]
[335798191,1724495226314,-300.0,0.00012876,2]
[335798192,1724495226335,-648.730278,0.00012877,2]
[335798193,1724495226357,-695.83318225,0.00012971,2]
[335798194,1724495226383,-554.2825588,0.00012971,2]
[335798195,1724495226406,-365.55978458,0.00012985,2]
[335798196,1724495231619,239.96,0.00010959,2]
[335798197,1724495238148,-444.76768483,0.00012985,2]
[335798198,1724495238170,-695.14803561,0.00012989,2]
[335798199,1724495238193,-172.098282,0.00013053,2]
[335798200,1724495238215,-500.0,0.000132,2]
[335798201,1724495238238,-266.73954726,0.000132,2]
[335798202,1724495238262,-296.83333728,0.00013376,2]
[335798203,1724495238285,-206.7090212,0.00013379,2]
[335798204,1724495241105,-793.2909788,0.00013379,2]
[335798205,1724495241129,-1000.0,0.00013384,2]
[335798206,1724495241154,-1000.0,0.00013427,2]
[335798207,1724495241179,-1993.07,0.00013488,2]
[335798208,1724495241201,-1000.0,0.00013545,2]
[335798209,1724495241224,-13654.3244851,0.00013568,2]
[335798210,1724495241247,-915.48326112,0.00013573,2]
[335798211,1724495241269,-915.48326111,0.00013579,2]
[335798212,1724495241291,-915.48326111,0.00013586,2]
[335798213,1724495241312,-1254.39060242,0.00013588,2]
[335798214,1724495241333,-12926.53199382,0.00013588,2]
[335798215,1724495242117,199.96,0.00010959,2]
[335798217,1724495252621,166.64,0.00010959,2]
[335798218,1724495254109,-26849.32345277,0.00013588,2]
[335798221,1724495263093,833.2,0.00010959,2]
[335798222,1724495292894,1672.36760276,0.00010959,2]
[335798232,1724495355117,-571.11550065,0.000125,2]
[335798238,1724495378194,7082.8600558,0.00012413,2]
[335798245,1724495395827,173.524482,0.00012506,2]
[335798246,1724495396056,173.524482,0.00012541,2]
[335798247,1724495396259,173.524482,0.00012575,2]
[335798248,1724495396480,173.524482,0.00012609,2]
[335798249,1724495396702,173.524482,0.00012644,2]
[335798250,1724495396932,173.524482,0.00012678,2]
[335798251,1724495397143,173.524482,0.00012712,2]
[335798252,1724495397362,173.524482,0.00012747,2]
[335798253,1724495397574,173.524482,0.00012781,2]
[335798254,1724495397774,173.524482,0.00012815,2]
[335798274,1724495432049,-173.524482,0.00012849,2]
[335798276,1724495432059,-173.524482,0.00012884,2]
[335798278,1724495432069,-8950.95321072,0.000129,2]
[335798280,1724495432081,-173.524482,0.00012918,2]
[335798282,1724495432091,-173.524482,0.00012952,2]
[335798284,1724495432101,-300.0,0.00012986,2]
[335798286,1724495432110,-173.524482,0.00012987,2]
[335798288,1724495432120,-173.524482,0.00013021,2]
[335798290,1724495432130,-695.14803561,0.00013025,2]
[335798291,1724495432140,-487.53066069,0.00013051,2]
[335798293,1724495432149,-173.524482,0.00013055,2]
[335798295,1724495432159,-173.524482,0.0001309,2]
[335798297,1724495432169,-173.524482,0.00013124,2]
[335798299,1724495432179,-173.524482,0.00013158,2]
[335798301,1724495432188,-836.47866191,0.00013283,2]
[335798303,1724495432197,-820.45244196,0.00013283,2]
[335798305,1724495432207,-207.6636928,0.000133,2]
[335798307,1724495432217,-5720.57521366,0.00013431,2]
[335798309,1724495432227,-6182.76547248,0.00013578,2]
[335798311,1724495432318,-286.92176757,0.00013578,2]
[335798312,1724495432330,-714.73489578,0.00013578,2]
[335798313,1724495432365,-13049.90263183,0.00013578,2]
[335798314,1724495432382,-9617.64466191,0.00013578,2]
[335798315,1724495437551,312.74,0.00010959,2]
[335798321,1724495438151,-31304.43606887,0.00013578,2]
[335798322,1724495438161,-49112.14455341,0.00013588,2]
[335798323,1724495438171,-2470.3161722,0.00013597,2]
[335798324,1724495438181,-602.34735438,0.00013597,2]
[335798325,1724495438190,-2470.31617218,0.00013597,2]
[335798326,1724495438199,-2470.31617218,0.00013598,2]
[335798327,1724495438209,-2470.31617218,0.00013598,2]
[335798328,1724495438218,-2470.31617218,0.00013598,2]
[335798329,1724495438227,-37801.98791097,0.00013599,2]
[335798330,1724495438236,-153.0,0.000136,2]
[335798331,1724495438246,-153.0,0.000136,2]
[335798332,1724495438255,-415.3273856,0.000136,2]
[335798333,1724495438265,-500.0,0.00013673,2]
[335798334,1724495438275,-313.47562588,0.00013673,2]
[335798335,1724495438289,-1032.37120902,0.00013676,2]
[335798336,1724495438299,-155.0,0.0001368,2]
[335798337,1724495438309,-1915.53169994,0.00013688,2]
[335798338,1724495438319,-543442.114515,0.00013688,2]
[335798339,1724495438329,-213.42060236,0.00013697,2]
[335798340,1724495438340,-6755.67246786,0.00013697,2]
[335798341,1724495438350,-379.83850594,0.00013698,2]
[335798342,1724495438359,-500.0,0.00013698,2]
[335798343,1724495438369,-500.0,0.00013698,2]
[335798344,1724495438379,-210.01840328,0.00013698,2]
[335798345,1724495438389,-504.91529324,0.00013698,2]
[335798346,1724495438399,-500.0,0.00013698,2]
[335798348,1724495438408,-500.0,0.00013698,2]
[335798350,1724495438419,-554.37074872,0.00013698,2]
[335798351,1724495438429,-500.0,0.00013698,2]
[335798352,1724495438441,-500.0,0.00013698,2]
[335798353,1724495438451,-500.0,0.00013698,2]
[335798354,1724495438464,-500.0,0.00013698,2]
[335798355,1724495438474,-515.1272377,0.00013698,2]
[335798356,1724495438484,-656.25,0.00013698,2]
[335798357,1724495438494,-500.0,0.00013698,2]
[335798358,1724495438503,-500.0,0.00013698,2]
[335798359,1724495438514,-500.0,0.00013698,2]
[335798360,1724495438524,-500.0,0.00013698,2]
[335798361,1724495438533,-500.0,0.00013698,2]
[335798362,1724495438543,-500.0,0.00013698,2]
[335798363,1724495438553,-500.0,0.00013698,2]
[335798364,1724495438566,-500.0,0.00013698,2]
[335798365,1724495438578,-500.0,0.00013698,2]
[335798366,1724495438587,-500.0,0.00013698,2]
[335798367,1724495438597,-500.0,0.00013698,2]
[335798368,1724495438607,-500.0,0.00013698,2]
[335798369,1724495438616,-500.0,0.00013698,2]
[335798370,1724495438625,-500.0,0.00013698,2]
[335798371,1724495438634,-500.0,0.00013698,2]
[335798372,1724495438644,-500.0,0.00013698,2]
[335798373,1724495438654,-500.0,0.00013698,2]
[335798374,1724495438663,-500.0,0.00013698,2]
[335798375,1724495438673,-500.0,0.00013698,2]
[335798376,1724495438682,-500.0,0.00013698,2]
[335798377,1724495438693,-500.0,0.00013698,2]
[335798378,1724495438702,-869.6,0.00013698,2]
[335798379,1724495438711,-930.06,0.00013698,2]
[335798380,1724495438721,-613.11,0.00013698,2]
[335798381,1724495438735,-500.0,0.00013698,2]
[335798382,1724495438746,-500.0,0.00013698,2]
[335798383,1724495438757,-500.0,0.00013698,2]
[335798384,1724495438767,-500.0,0.00013698,2]
[335798385,1724495438776,-500.0,0.00013698,2]
[335798386,1724495438786,-501.1535577,0.00013698,2]
[335798387,1724495438796,-500.0,0.00013698,2]
[335798388,1724495438807,-501.9178926,0.00013698,2]
[335798389,1724495438817,-500.0,0.00013698,2]
[335798390,1724495438826,-509.38034632,0.00013698,2]
[335798391,1724495438836,-531.46,0.00013698,2]
[335798392,1724495438845,-500.0,0.00013698,2]
[335798393,1724495438855,-500.0,0.00013698,2]
[335798394,1724495438865,-500.0,0.00013698,2]
[335798395,1724495438875,-668.94,0.00013698,2]
[335798396,1724495438884,-500.0,0.00013698,2]
[335798397,1724495438894,-500.0,0.00013698,2]
[335798398,1724495438904,-500.0,0.00013698,2]
[335798399,1724495438913,-500.0,0.00013698,2]
[335798400,1724495438923,-500.0,0.00013698,2]
[335798401,1724495438934,-500.85815529,0.00013698,2]
[335798402,1724495438944,-500.0,0.00013698,2]
[335798403,1724495438954,-500.0,0.00013698,2]
[335798404,1724495438963,-500.0,0.00013698,2]
[335798405,1724495438974,-150.0,0.00013698,2]
[335798406,1724495438984,-500.0,0.00013698,2]
[335798407,1724495438994,-500.0,0.00013698,2]
[335798408,1724495439006,-500.0,0.00013698,2]
[335798409,1724495439016,-500.0,0.00013698,2]
[335798410,1724495439026,-500.0,0.00013698,2]
[335798411,1724495439036,-159.93009355,0.00013698,2]
[335798412,1724495439047,-500.0,0.00013698,2]
[335798413,1724495439058,-499.99680539,0.00013698,2]
[335798414,1724495439067,-500.0,0.00013698,2]
[335798415,1724495439076,-500.0,0.00013698,2]
[335798416,1724495439088,-534.06379751,0.00013698,2]
[335798417,1724495439098,-500.0,0.00013698,2]
[335798418,1724495439108,-500.0,0.00013698,2]
[335798419,1724495439118,-724.25,0.00013698,2]
[335798420,1724495439128,-500.0,0.00013698,2]
[335798421,1724495439139,-500.0,0.00013698,2]
[335798422,1724495439150,-500.0,0.00013698,2]
[335798423,1724495439160,-500.0,0.00013698,2]
[335798424,1724495439170,-500.0,0.00013698,2]
[335798425,1724495439180,-500.0,0.00013698,2]
[335798426,1724495439190,-500.0,0.00013698,2]
[335798427,1724495439200,-516.55611504,0.00013698,2]
[335798428,1724495439209,-500.0,0.00013698,2]
[335798429,1724495439221,-500.0,0.00013698,2]
[335798430,1724495439232,-500.0,0.00013698,2]
[335798431,1724495439242,-500.0,0.00013698,2]
[335798432,1724495439254,-834.01,0.00013698,2]
[335798433,1724495439265,-500.0,0.00013698,2]
[335798434,1724495439276,-630.44304182,0.00013698,2]
[335798435,1724495439286,-500.0,0.00013698,2]
[335798436,1724495439295,-500.0,0.00013698,2]
[335798437,1724495439305,-738.6,0.00013698,2]
[335798438,1724495439315,-500.0,0.00013698,2]
[335798439,1724495439325,-500.0,0.00013698,2]
[335798440,1724495439334,-500.95745786,0.00013698,2]
[335798441,1724495439343,-500.0,0.00013698,2]
[335798442,1724495439353,-500.0,0.00013698,2]
[335798443,1724495439362,-500.0,0.00013698,2]
[335798444,1724495439373,-585.61,0.00013698,2]
[335798445,1724495439383,-500.0,0.00013698,2]
[335798446,1724495439392,-500.0,0.00013698,2]
[335798447,1724495439401,-500.0,0.00013698,2]
[335798448,1724495439411,-527.90559748,0.00013698,2]
[335798449,1724495439420,-500.18172759,0.00013698,2]
[335798450,1724495439430,-500.0,0.00013698,2]
[335798451,1724495439440,-500.0,0.00013698,2]
[335798452,1724495439449,-540.55,0.00013698,2]
[335798453,1724495439460,-569.06,0.00013698,2]
[335798454,1724495439470,-500.0,0.00013698,2]
[335798455,1724495439479,-500.0,0.00013698,2]
[335798456,1724495439488,-500.0,0.00013698,2]
[335798457,1724495439498,-511.04,0.00013698,2]
[335798458,1724495439508,-500.0,0.00013698,2]
[335798459,1724495439518,-787.89,0.00013698,2]
[335798460,1724495439527,-500.0,0.00013698,2]
[335798461,1724495439537,-500.0,0.00013698,2]
[335798462,1724495439546,-500.0,0.00013698,2]
[335798463,1724495439555,-500.0,0.00013698,2]
[335798464,1724495439565,-500.0,0.00013698,2]
[335798465,1724495439576,-500.0,0.00013698,2]
[335798466,1724495439585,-500.0,0.00013698,2]
[335798467,1724495439595,-500.0,0.00013698,2]
[335798468,1724495439604,-500.0,0.00013698,2]
[335798469,1724495439614,-555.1,0.00013698,2]
[335798470,1724495439624,-500.0,0.00013698,2]
[335798471,1724495439633,-500.0,0.00013698,2]
[335798472,1724495439650,-500.0,0.00013698,2]
[335798473,1724495439664,-522.96,0.00013698,2]
[335798474,1724495439673,-500.0,0.00013698,2]
[335798475,1724495439683,-500.0,0.00013698,2]
[335798476,1724495439694,-500.0,0.00013698,2]
[335798477,1724495439704,-503.11997067,0.00013698,2]
[335798478,1724495439714,-500.0,0.00013698,2]
[335798479,1724495439725,-500.0,0.00013698,2]
[335798480,1724495439736,-500.0,0.00013698,2]
[335798481,1724495439747,-500.0,0.00013698,2]
[335798482,1724495439760,-500.0,0.00013698,2]
[335798483,1724495439770,-500.0,0.00013698,2]
[335798485,1724495439780,-500.0,0.00013698,2]
[335798488,1724495439791,-500.0,0.00013698,2]
[335798490,1724495439804,-500.0,0.00013698,2]
[335798492,1724495439815,-500.0,0.00013698,2]
[335798493,1724495439825,-602.71,0.00013698,2]
[335798494,1724495439836,-500.0,0.00013698,2]
[335798495,1724495439849,-985.55,0.00013698,2]
[335798496,1724495439861,-500.0,0.00013698,2]
[335798497,1724495439871,-500.0,0.00013698,2]
[335798498,1724495439881,-661.36,0.00013698,2]
[335798500,1724495439892,-449.81063824,0.00013698,2]
[335798502,1724495439906,-500.0,0.00013698,2]
[335798503,1724495439917,-1129.97,0.00013698,2]
[335798504,1724495439928,-564.29,0.00013698,2]
[335798505,1724495439939,-500.25966525,0.00013698,2]
[335798506,1724495439950,-708.71,0.00013698,2]
[335798507,1724495439962,-500.0,0.00013698,2]
[335798508,1724495439973,-500.0,0.00013698,2]
[335798509,1724495439985,-674.98,0.00013698,2]
[335798510,1724495439998,-768.73,0.00013698,2]
[335798511,1724495440014,-500.0,0.00013698,2]
[335798512,1724495440026,-500.0,0.00013698,2]
[335798513,1724495440038,-500.0,0.00013698,2]
[335798514,1724495440053,-508.07,0.00013698,2]
[335798516,1724495440063,-851.99,0.00013698,2]
[335798517,1724495440073,-503.89,0.00013698,2]
[335798518,1724495440083,-500.0,0.00013698,2]
[335798519,1724495440094,-500.0,0.00013698,2]
[335798520,1724495440103,-500.0,0.00013698,2]
[335798521,1724495440113,-500.0,0.00013698,2]
[335798522,1724495440122,-500.0,0.00013698,2]
[335798523,1724495440131,-500.0,0.00013698,2]
[335798524,1724495440141,-500.0,0.00013698,2]
[335798526,1724495440150,-500.0,0.00013698,2]
[335798527,1724495440160,-500.0,0.00013698,2]
[335798528,1724495440169,-500.0,0.00013698,2]
[335798529,1724495440179,-500.0,0.00013698,2]
[335798530,1724495440189,-500.0,0.00013698,2]
[335798531,1724495440199,-504.03413542,0.00013698,2]
[335798532,1724495440209,-500.0,0.00013698,2]
[335798533,1724495440218,-500.0,0.00013698,2]
[335798534,1724495440228,-500.0,0.00013698,2]
[335798535,1724495440238,-500.0,0.00013698,2]
[335798536,1724495440248,-500.0,0.00013698,2]
[335798537,1724495440258,-500.0,0.00013698,2]
[335798538,1724495440267,-500.0,0.00013698,2]
[335798539,1724495440279,-500.0,0.00013698,2]
[335798540,1724495440289,-500.0,0.00013698,2]
[335798541,1724495440299,-500.0,0.00013698,2]
[335798542,1724495440308,-500.0,0.00013698,2]
[335798543,1724495440319,-500.0,0.00013698,2]
[335798544,1724495440329,-500.0,0.00013698,2]
[335798545,1724495440339,-500.0,0.00013698,2]
[335798546,1724495440351,-500.0,0.00013698,2]
[335798547,1724495440362,-500.0,0.00013698,2]
[335798548,1724495440371,-500.0,0.00013698,2]
[335798549,1724495440381,-500.0,0.00013698,2]
[335798550,1724495440390,-550.92,0.00013698,2]
[335798551,1724495440400,-500.0,0.00013698,2]
[335798552,1724495440409,-500.0,0.00013698,2]
[335798553,1724495440419,-733.17,0.00013698,2]
[335798554,1724495440428,-500.0,0.00013698,2]
[335798555,1724495440438,-500.0,0.00013698,2]
[335798556,1724495440447,-500.0,0.00013698,2]
[335798557,1724495440457,-500.0,0.00013698,2]
[335798558,1724495440466,-500.0,0.00013698,2]
[335798559,1724495440475,-500.0,0.00013698,2]
[335798560,1724495440485,-500.0,0.00013698,2]
[335798561,1724495440495,-193.80537047,0.00013698,2]
[335798562,1724495440504,-500.0,0.00013698,2]
[335798563,1724495440513,-500.0,0.00013698,2]
[335798564,1724495440523,-500.0,0.00013698,2]
[335798565,1724495440533,-915.0,0.00013698,2]
[335798566,1724495440542,-500.0,0.00013698,2]
[335798567,1724495440552,-500.0,0.00013698,2]
[335798568,1724495440562,-500.0,0.00013698,2]
[335798569,1724495440572,-524.10641745,0.00013698,2]
[335798570,1724495440581,-500.0,0.00013698,2]
[335798571,1724495440593,-807.9,0.00013698,2]
[335798572,1724495440605,-500.0,0.00013698,2]
[335798573,1724495440619,-500.0,0.00013698,2]
[335798574,1724495440633,-524.22806794,0.00013698,2]
[335798575,1724495440646,-500.0,0.00013698,2]
[335798576,1724495440656,-500.0,0.00013698,2]
[335798577,1724495440666,-500.0,0.00013698,2]
[335798578,1724495440676,-534.77,0.00013698,2]
[335798579,1724495440685,-500.0,0.00013698,2]
[335798580,1724495440695,-500.0,0.00013698,2]
[335798581,1724495440708,-500.0,0.00013698,2]
[335798582,1724495440718,-500.0,0.00013698,2]
[335798583,1724495440727,-501.17,0.00013698,2]
[335798584,1724495440737,-500.0,0.00013698,2]
[335798585,1724495440747,-253.09911784,0.00013698,2]
[335798586,1724495440756,-681.91,0.00013698,2]
[335798587,1724495440766,-561.35,0.00013698,2]
[335798588,1724495440776,-500.0,0.00013698,2]
[335798589,1724495441004,-500.0,0.00013698,2]
[335798590,1724495441044,-500.0,0.00013698,2]
[335798591,1724495441054,-500.0,0.00013698,2]
[335798592,1724495441064,-500.0,0.00013698,2]
[335798593,1724495441074,-500.0,0.00013698,2]
[335798594,1724495441085,-629.47,0.00013698,2]
[335798595,1724495441095,-500.09,0.00013698,2]
[335798596,1724495441104,-500.0,0.00013698,2]
[335798597,1724495441113,-863.87,0.00013698,2]
[335798598,1724495441123,-258.0,0.00013698,2]
[335798599,1724495441132,-1016.77,0.00013698,2]
[335798600,1724495441141,-500.0,0.00013698,2]
[335798601,1724495441151,-500.0,0.00013698,2]
[335798602,1724495441160,-1464.93,0.00013698,2]
[335798603,1724495441170,-524.03413021,0.00013698,2]
[335798604,1724495441179,-500.0,0.00013698,2]
[335798605,1724495441188,-500.0,0.00013698,2]
[335798606,1724495441197,-500.0,0.00013698,2]
[335798607,1724495441206,-500.0,0.00013698,2]
[335798608,1724495441216,-500.0,0.00013698,2]
[335798609,1724495441226,-500.0,0.00013698,2]
[335798610,1724495441236,-500.0,0.00013698,2]
[335798611,1724495441247,-500.0,0.00013698,2]
[335798612,1724495441258,-585.26,0.00013698,2]
[335798613,1724495441268,-388.01515087,0.00013698,2]
[335798614,1724495441279,-315.43926399,0.00013698,2]
[335798615,1724495441288,-759.88,0.00013698,2]
[335798616,1724495441300,-500.0,0.00013698,2]
[335798617,1724495441309,-500.0,0.00013698,2]
[335798618,1724495441321,-622.2,0.00013698,2]
[335798619,1724495441332,-508.35,0.00013698,2]
[335798620,1724495441344,-500.0,0.00013698,2]
[335798621,1724495441354,-699.64,0.00013698,2]
[335798622,1724495441366,-500.0,0.00013698,2]
[335798623,1724495441377,-500.0,0.00013698,2]
[335798624,1724495441388,-500.0,0.00013698,2]
[335798625,1724495441401,-500.0,0.00013698,2]
[335798626,1724495441413,-500.0,0.00013698,2]